Workbook

Sheet Introduction
B1: Ce calculateur des coûts de production du biodiesel contient 4 feuilles de calcul Certains champs peuvent être remplis par l’utilisateur. Il comporte 8 colonnes et 250 lignes.
B2: Lignes directrices pour estimer
B3: les coûts de production du biodiesel de canola — carburant agricole
B4: basés sur 15 000 litres par année
B12: Ce guide vous offre des renseignements en matière de planification et un format pour calculer les coûts de production pour une production de biodiesel à la ferme en fonction du coût de la culture du canola dans votre exploitation agricole. Les coûts de renonciation relatifs aux prix potentiels du marché pour le canola ne sont pas inclus. Des rajustements sont nécessaires lorsque vous appliquez ces chiffres à votre propre entreprise.
B14: Les prévisions budgétaires sont basées sur un certain nombre d’hypothèses qui sont clairement définies dans les pages secondaires. Les coûts des intrants sont basés sur les renseignements fournis par l’industrie. Une gestion adéquate des installations dans le processus de production et la conformité avec l’ensemble des exigences environnementales et en matière de sécurité qui s’appliquent sont présumées. La plupart des fabricants d’équipement d’origine exigent que le biodiesel respecte la norme de qualité pour les carburants ASTM D6751.
B16: Avis de non-responsabilité : Ce budget n’est qu’un guide et ne constitue pas une étude approfondie du coût de production de l’industrie du diesel. L’interprétation et l’utilisation de ces renseignements sont la responsabilité de l’utilisateur. Si vous avez besoin d’aide pour élaboration du budget individuel pour votre exploitation, communiquez avec le Centre d’information agricole au 1 877 424-1300.
B19: Adapté pour l’Ontario par Kevin McKague et Richard Brunke
B20: Ingénieristes, MAAARO
B21: courriel : kevin.mckague@ontario.ca
B22: version du 14 octobre 2014
B26: Fin de la feuille de calcul

Sheet Input
B1: Ce calculateur des coûts de production du biodiesel contient 4 feuilles de calcul. Certains champs peuvent être remplis par l’utilisateur. Il comporte 8 colonnes et 250 lignes.
B2: Coûts de production du biodiesel — intrants
B4: Hypothèses
B6: 1. Ce budget décrit le coût de production pour une exploitation de biodiesel.
B7: 2. Les bâtiments et l’équipement sont évalués au nouveau coût.
B8: 3. Tout le canola utilisé comme matière première est évalué au coût de production.
B9: 4. Le coût de la matière première (huile végétale) inclut la valeur marchande du
B10: tourteau de canola produit.
B11: 5. Tout le biodiesel produit est destiné uniquement à être utilisé à la ferme.
B13: Production de l’installation de biodiesel | D13: Variables des intrants | E13: Unités | F13: Commentaires
B14: Taille de l’installation — milliers de litres | D14: 15
B15: Jours par année | D15: 65
B16: Heures d’exploitation par jour | D16: 8
B17: Employés par quart de travail — production de biodiesel | D17: 0.25
B18: Taux de main-d’œuvre | D18: 20 | E18: / heure
B20: Huile végétale nécessaire par litre de biodiesel | D20: 0.99088 | E20: litres
B21: Méthanol | D21: 6950 | E21: / tonne
B22: Récupération du méthanol | D22: 25 | E22: %
B23: Catalyseur — hydroxyde de potassium | D23: 12350 | E23: / tonne
B25: Glycérol | D25: 180 | E25: / tonne
B26: Diesel (coloré) carburant agricole — DTUFS | D26: 1.2 | E26: / litre
B27: Utilisation du mélange de biodiesel agricole | D27: 100 | E27: %
B28: Augmentation de l’efficacité du carburant agricole avec l’utilisation du biodiesel | D28: 1.5 | E28: %
B30: Production d’huile de canola
B31: Coût du canola comme matière première (ou coût de production) | D31: 455 | E31: / acre
B32: Rendement moyen du canola — boisseaux | D32: 40 | E32: / acre
B33: Tourteau de canola — 34 % | D33: 450 | E33: / tonne
B34: Jours par année | D34: 155
B35: Heures d’exploitation par jour | D35: 24
B36: Employés par quart de travail — production d’huile de canola | D36: 0.05
B37: Taux de main-d’œuvre | D37: 20 | E37: / heure
B38: Teneur en huile de graines de canola | D38: 42 | E38: %
B39: Huile résiduelle dans le tourteau de canola | D39: 10 | E39: %
B40: Freinte dans la transformation des oléagineux | D40: 1 | E40: %
B41: Huile résiduelle dans le tourteau de canola (extraction au solvant) | D41: 3.5 | E41: %
B43: Surprime pour le tourteau | D43: 0 | E43: %
B44: Densité apparente de l’huile de canola | D44: 0.915 | E44: kg / L
B46: Autres coûts d’exploitation
B47: Hydro | D47: 0.15 | E47: / kWh
B48: Entretien | D48: 2.5 | E48: %
B49: Élimination des déchets/eaux usées | D49: 0.1333 | E49: / L
B50: Déclaration de la taxe sur les carburants de l’Ontario (0,143/L si le produit est utilisé dans des véhicules titulaires de permis) | D50: 0 | E50: / L
B51: Frais d'administration divers (p. ex., inscription auprès du ministère des Finances de l’Ontario) | D51: 0 | E51: / an
B52: Assurance | D52: 0.5 | E52: %
B53: Impôt foncier | D53: 0.5 | E53: %
B54: Taux d’investissement | D54: 2.5 | E54: %
B55: Taux du droit d'exploitation | D55: 4 | E55: %
B57: Dépenses en immobilisations
B58: Bâtiments | C58: Valeur initiale | E58: Valeur de récupération | F58: Durée économique
B59: Installation de biodiesel | C59: 3000 | E59: 0.1 | F59: 20 | G59: années
B60: Installation d’huile de canola | C60: 5000 | E60: 0.1 | F60: 20 | G60: années
B61: Total | C61: =SUM(C59:C60) -> 8000 | E61: =AVERAGE(E59:E60) -> 0.1 | F61: =AVERAGE(F59:F60) -> 20 | G61: années
B63: Machinerie et équipement
B64: Installation de biodiesel | C64: 3000 | E64: 0.1 | F64: 15 | G64: années
B65: Installation d’huile de canola | C65: 36000 | E65: 0.1 | F65: 15 | G65: années
B66: Total | C66: =SUM(C64:C65) -> 39000 | E66: =AVERAGE(E64:E65) -> 0.1 | F66: =AVERAGE(F64:F65) -> 15 | G66: années
B68: Total bâtiments, machinerie et équipement | C68: =C61+C66 -> 47000
B70: Valeur totale des terrains | C70: 10000
B72: Total des investissements en immobilisations | C72: =C68+C70 -> 57000
B76: fin de la feuille de calcul

Sheet Summary
B1: Ce calculateur des coûts de production du biodiesel contient 4 feuilles de calcul. Certains champs peuvent être remplis par l’utilisateur. Il comporte 8 colonnes et 250 lignes.
B2: =" Coûts de production du biodiesel — carburant agricole" -> Coûts de production du biodiesel — carburant agricole | D2: =TODAY() -> 2023-04-26
B3: ="Basé sur "&Input!D14&" 000 litres et des coûts de production du canola de" -> Basé sur 15 000 litres et des coûts de production du canola de
B4: =" "&TEXT(Input!D31,"### $")&" par acre et d’un rendement de "&Input!D32&" boisseaux par acre" -> 455 $ par acre et d’un rendement de 40 boisseaux par acre
B6: A. Coûts d’exploitation | C6: Coût/litre | D6: Coût total | E6: Votre coût réel
B7: 1. Coûts des intrants
B8: 1.01 Matière première (huile de canola moins la valeur du tourteau) | C8: =SUM(D8/(Input!D14*1000)) -> 0.5674062042 | D8: =Details!G58 -> 8511.093063
B9: 1.02 Méthanol | C9: =SUM(D9/(Input!D14*1000)) -> 1.039706851 | D9: =Details!G68 -> 15595.60276
B10: 1.03 Catalyseur | C10: =SUM(D10/(Input!D14*1000)) -> 0.1815064778 | D10: =Details!G78 -> 2722.597167
B11: Sous-total du coût des intrants | C11: =C8+C9+C10 -> 1.788619533 | D11: =SUM(D8:D10) -> 26829.29299
B13: 2. Autres coûts d’exploitation
B14: 2.01 Hydro | C14: =SUM(D14/(Input!D14*1000)) -> 0.07492417763 | D14: =Details!G101 -> 1123.862664
B15: 2.02 Entretien | C15: =SUM(D15/(Input!D14*1000)) -> 0.07833333333 | D15: =Details!G108 -> 1175
B16: 2.03 Élimination des déchets/eaux usées | C16: =SUM(D16/(Input!D14*1000)) -> 0.1333 | D16: =Details!G111 -> 1999.5
B17: 2.04 Déclaration de la taxe sur les carburants de l’Ontario | C17: =SUM(D17/(Input!D14*1000)) -> 0 | D17: =Details!G112 -> 0
B18: 2.05 Frais d’administration divers | C18: =SUM(D18/(Input!D14*1000)) -> 0 | D18: =Details!G113 -> 0
B19: 2.06 Assurance | C19: =SUM(D19/(Input!D14*1000)) -> 0.01566666667 | D19: =Details!G120 -> 235
B20: 2.07 Impôt foncier | C20: =SUM(D20/(Input!D14*1000)) -> 0.006 | D20: =Details!G127 -> 90
B21: Sous-total des coûts d’exploitation | C21: =SUM(C14:C20) -> 0.3082241776 | D21: =SUM(D14:D20) -> 4623.362664
B22: 2.08 Droit d’exploitation | C22: =SUM(D22/(Input!D14*1000)) -> 0.006133333333 | D22: =ROUND(Details!G135,0) -> 92
B23: Total des coûts d’exploitation | C23: =C21+C22+C11 -> 2.102977044 | D23: =SUM(D21:D22)+D11 -> 31544.65565
B25: 3. Dépréciation
B26: 3.01 Bâtiments | C26: =SUM(D26/(Input!D14*1000)) -> 0.024 | D26: =Details!G164 -> 360
B27: 3.02 Machinerie et équipement | C27: =SUM(D27/(Input!D14*1000)) -> 0.156 | D27: =Details!G170 -> 2340
B29: 4. Investissements
B30: 4.01 Bâtiments | C30: =SUM(D30/(Input!D14*1000)) -> 0.007333333333 | D30: =Details!G179 -> 110
B31: 4.02 Machinerie et équipement | C31: =SUM(D31/(Input!D14*1000)) -> 0.03575 | D31: =Details!G186 -> 536.25
B32: 4.03 Terrains | C32: =SUM(D32/(Input!D14*1000)) -> 0.01666666667 | D32: =Details!G191 -> 250
B33: Total des coûts fixes | C33: =SUM(C26:C32) -> 0.23975 | D33: =SUM(D26:D32) -> 3596.25
B34: Total des coûts d’exploitation et des coûts fixes | C34: =C23+C33 -> 2.342727044 | D34: =D23+D33 -> 35140.90565
B36: C. Main-d’œuvre | C36: =SUM(D36/(Input!D14*1000)) -> 0.4213333333 | D36: =Details!G209 -> 6320
B37: Total du coût de production | C37: =C34+C36 -> 2.764060377 | D37: =D36+D34 -> 41460.90565
B39: D. Valeur
B40: 5. Biodiesel
B41: 5.01 Valeur estimée du biodiesel agricole | C41: =SUM(D41/(Input!D14*1000)) -> 1.2 | D41: =Details!G216 -> 18000
B42: 5.02 Valeur estimée de l’efficacité accrue du carburant | C42: =SUM(D42/(Input!D14*1000)) -> 0.01827411168 | D42: =Details!G231 -> 274.1116751
B43: 5.03 Ventes de glycérol | C43: =SUM(D43/(Input!D14*1000)) -> 0.016845912 | D43: =Details!G236 -> 252.68868
B44: Valeur totale | C44: =C41+C42+C43 -> 1.235120024 | D44: =D41+D42+D43 -> 18526.80036
B46: Valeur totale — coût de production | C46: =C44-C37 -> -1.528940353 | D46: =D44-D37 -> -22934.1053
B48: Prix limite | C48: $/litre | D48: Coût $ de prod./bois.
B49: A. Coûts d’exploitation | C49: =SUM((D23-(D44-D41))/(Input!D14*1000)) -> 2.06785702 | D49: =SUM(((D44-D23)/(Details!G32))+Details!G36) -> 4.433439008
B50: B. Coûts d’exploitation et de la main-d’œuvre | C50: =SUM(((D23+D36)-(D44-D41))/(Input!D14*1000)) -> 2.489190353 | D50: =SUM(((D44-D23-D36)/(Details!G32))+Details!G36) -> 1.060973694
B51: C. Coûts d’exploitation et coûts fixes | C51: =SUM((D34-(D44-D41))/(Input!D14*1000)) -> 2.30760702 | D51: =SUM(((D44-D34)/(Details!G32))+Details!G36) -> 2.514415529
B52: D. Coûts d’exploitation, fixes et de la main-d’œuvre | C52: =SUM(((D34+D36)-(D44-D41))/(Input!D14*1000)) -> 2.728940353 | D52: =SUM(((D44-D34-D36)/(Details!G32))+Details!G36) -> -0.8580497857
B55: ="Prix limite $/litre = (coût - (valeur totale – valeur estimée du biodiesel agricole)) ÷ "&Input!D14&",000 litres" -> Prix limite $/litre = (coût - (valeur totale – valeur estimée du biodiesel agricole)) ÷ 15,000 litres
B56: ="Prix limite coût de production $/bois. = valeur total – coût ÷ "&Details!G32&" bois. de canola + "&Details!G36&" $ de CDP par bois." -> Prix limite coût de production $/bois. = valeur total – coût ÷ 1874 bois. de canola + 11.38 $ de CDP par bois.
C57: ="(avec tourteau de canola = "&Input!D33&" $/tonne)" -> (avec tourteau de canola = 450 $/tonne)
B62: Avis de non-responsabilité : Ce budget n’est qu’un guide et ne constitue pas une étude approfondie du coût de production de
B63: L’interprétation et l’utilisation de ces renseignements sont la responsabilité de l’utilisateur. Aucune responsabilité
B64: n’est assumée pour des décisions fondées sur l’interprétation et l’utilisation des renseignements de la présente publication.

Sheet Details
B1: Ce calculateur des coûts de production du biodiesel contient 4 feuilles de calcul. Certains champs peuvent être remplis par l’utilisateur. Il comporte 8 colonnes et 250 lignes.
B2: Feuille de calcul sur la production de biodiesel
B5: Hypothèses
B6: 1. Ce budget décrit le coût de production pour une exploitation de biodiesel.
B7: 2. Les bâtiments et l’équipement sont évalués au nouveau coût.
B8: 3. Tout le soya utilisé comme matière première est évalué au coût de production.
B9: 4. Le coût de la matière première (huile végétale) inclut la valeur marchande du tourteau de soya produit.
B10: 5. Tout le biodiesel produit est destiné uniquement à être utilisé à la ferme.
B14: A. Coûts d’exploitation
C15: 1. Coûts des intrants | I15: Vos valeurs
D16: 1.01 Matière première — huile végétale
G17: =Input!D38/100 -> 0.42 | H17: teneur en huile de canola
F18: - | G18: =Input!D39/100 -> 0.1 | H18: huile résiduelle dans le tourteau de canola
F19: = | G19: =(G17-G18) -> 0.32 | H19: extraction d’huile nette
F20: - | G20: =Input!D40/100 -> 0.01 | H20: freinte dans la transformation
F21: = | G21: =(1-G19-G20) -> 0.67 | H21: rendement net en tourteau de canola
F23: x | G23: 1000 | H23: kg par tonne
F24: = | G24: =SUM(G19*G23) -> 320 | H24: kg d’huile par tonne de canola
F25: ÷ | G25: =Input!D44 -> 0.915 | H25: densité apparente de l’huile de canola kg/L
F26: = | G26: =SUM(G24/G25) -> 349.726776 | H26: Litres d’huile par tonne de canola
G28: =SUM(1000*Input!D14) -> 15000 | H28: Capacité de l’installation de biodiesel — litres
F29: x | G29: =Input!D20 -> 0.99088 | H29: huile nécessaire par litre de biodiesel
F30: ÷ | G30: =G26 -> 349.726776 | H30: Litres d’huile par tonne de canola
F31: = | G31: =SUM((G28*G29)/G30) -> 42.4994625 | H31: Tonnes de canola nécessaires
G32: =ROUND(G31*44.0917,0) -> 1874 | H32: Boisseaux de canola nécessaires
G34: =Input!D31 -> 455 | H34: Coût de production du canola par acre
F35: ÷ | G35: =Input!D32 -> 40 | H35: Rendement par acre
G36: =ROUND(G34/G35,2) -> 11.38 | H36: Coût de production de la matière première par boisseau
G37: =SUM(G36*44.0917) -> 501.763546 | H37: Coût de la matière première par tonne
F38: x | G38: =G31 -> 42.4994625 | H38: =H31 -> Tonnes de canola nécessaires
F39: = | G39: =SUM(G37*G38) -> 21324.68101 | H39: Matière première - Canola
G41: =G31 -> 42.4994625 | H41: =H31 -> Tonnes de canola nécessaires
F42: x | G42: =G21 -> 0.67 | H42: rendement net en tourteau de canola
F43: = | G43: =SUM(G41*G42) -> 28.47463988 | H43: tonnes de tourteau de canola
G45: =SUM(((Input!D39)-Input!D41)/100*1000) -> 65 | H45: kg en teneur d’huile extra dans le tourteau
G46: =SUM((Input!D42)*100)/(40.3*(76/100))*(2183*(167.28/100))/100 -> 0 | H46: Équivalent de l’huile de canola comme aliments pour animaux
H47: par tonne (167,28 substance nutritive totale)
G48: =SUM(G45*(G46))/1000 -> 0 | H48: Prime pour le tourteau d’huile de canola résiduelle
F49: x | G49: =Input!D43/100 -> 0 | H49: Prime payable pour l’huile
F50: = | G50: =SUM(G48*G49) -> 0 | H50: Prime pour l’huile par tonne
F51: + | G51: =Input!D33 -> 450 | H51: Tourteau de canola — 34 %
F52: = | G52: =SUM((G48*G49)+G51) -> 450 | H52: Prix du tourteau de canola par tonne
F53: x | G53: =G43 -> 28.47463988 | H53: Tonnes canola meal
F54: = | G54: =SUM(G52*G53) -> 12813.58794 | H54: Revenu du tourteau de canola
G56: =G39 -> 21324.68101 | H56: =H39 -> Matière première - Canola
F57: - | G57: =G54 -> 12813.58794 | H57: =H54 -> Revenu du tourteau de canola
E58: Total | F58: = | G58: =SUM(G56-G57) -> 8511.093063 | H58: Coût net de la matière première
D60: 1.02 Méthanol
G61: =SUM(1000*Input!D14) -> 15000 | H61: Capacité de l’installation de biodiesel — litres
F62: x | G62: =Input!D20 -> 0.99088 | H62: huile nécessaire par litre de biodiesel
F63: x | G63: =Input!D44 -> 0.915 | H63: densité apparente de l’huile de canola kg/L
F64: x | G64: 0.22 | H64: Méthanol nécessaire
F65: x | G65: =(Input!D22/100) -> 0.25 | H65: Récupération du méthanol
F66: ÷ | G66: 1000 | H66: kg par tonne
F67: x | G67: =Input!D21 -> 6950 | H67: Méthanol par tonne
E68: Total | F68: = | G68: =(G61*G62*G63*G64*(1-G65)*G67)/G66 -> 15595.60276 | H68: Méthanol
D70: 1.03 Catalyseur
G71: =SUM(1000*Input!D14) -> 15000 | H71: Capacité de l’installation de biodiesel — litres
F72: x | G72: =Input!D20 -> 0.99088 | H72: huile nécessaire par litre de biodiesel
F73: x | G73: =Input!D44 -> 0.915 | H73: densité apparente de l’huile de canola kg/L
F74: ÷ | G74: 1000 | H74: kg par tonne
F75: x | G75: 16.21 | H75: kg d’hydroxyde de potassium/tonne
F76: ÷ | G76: 1000 | H76: kg par tonne
F77: x | G77: =Input!D23 -> 12350 | H77: Catalyseur par tonne
E78: Total | F78: = | G78: =SUM(G71*G72*G73/G74*G75/G76*G77) -> 2722.597167 | H78: Catalyseur
C80: 2. Autres coûts d’exploitation
D81: 2.01 Hydro
G82: =G31 -> 42.4994625 | H82: Total des tonnes de canola
F83: ÷ | G83: =Input!D34 -> 155 | H83: Jours par année —broyage
G84: =SUM(G82/G83) -> 0.2741900806 | H84: Tonnes de canola par jour
F85: ÷ | G85: =Input!D35 -> 24 | H85: Heures d’exploitation par jour — broyage
G86: =SUM(G84/G85) -> 0.01142458669 | H86: Tonnes de canola par heure
F88: x | G88: =G84 -> 0.2741900806 | H88: Tonnes de canola par jour
F89: x | G89: 8.5 | H89: HP par tonne
F90: x | G90: 0.75 | H90: HP en kilowatts
F91: x | G91: =Input!D47 -> 0.15 | H91: Tarif hydro — kWhr
F92: x | G92: =Input!D34 -> 155 | H92: Jours par année —broyage
F93: x | G93: =Input!D35 -> 24 | H93: Heures d’exploitation par jour — broyage
F94: = | G94: =SUM(G88*G89*G90*G91*G92*G93) -> 975.3626644 | H94: Sous-total hydro - biodiesel
G96: =Input!D14*1000 -> 15000 | H96: Capacité de l’installation de biodiesel — litres
F97: x | G97: 0.066 | H97: kWhr par litre
F98: x | G98: =Input!D47 -> 0.15 | H98: Tarif hydro — kWhr
F99: = | G99: =SUM((G96*G97*G98)) -> 148.5 | H99: Sous-total hydro - biodiesel
E101: Total | F101: = | G101: =G99+G94 -> 1123.862664 | H101: Hydro
D103: 2.02 Entretien
G104: =Input!C61 -> 8000 | H104: coûts des immobilisations — bâtiments
F105: + | G105: =Input!C66 -> 39000 | H105: coût des immobilisations — équipement
F106: = | G106: =SUM(G104:G105) -> 47000 | H106: Total bâtiments et équipement
F107: x | G107: =Input!D48/100 -> 0.025 | H107: Taux d'entretien
F108: = | G108: =SUM(G106*G107) -> 1175 | H108: Total entretien
D110: 2.03 - 2.05 Administration
G111: =Input!D14*1000*Input!D49 -> 1999.5 | H111: Élimination des déchets/eaux usées
G112: =Input!D14*1000 * Input!D50 -> 0 | H112: Déclaration de la taxe sur les carburants de l’Ontario
G113: =Input!D51 -> 0 | H113: Frais d’administration divers
D115: 2.06 Assurance
G116: =Input!C61 -> 8000 | H116: coûts des immobilisations — bâtiments
F117: + | G117: =Input!C66 -> 39000 | H117: coût des immobilisations — équipement
F118: = | G118: =SUM(G116:G117) -> 47000 | H118: Total bâtiments et équipement
F119: x | G119: =Input!D52/100 -> 0.005 | H119: Taux d’assurance
F120: = | G120: =SUM(G118*G119) -> 235 | H120: Total assurance
D122: 2.07 Impôt foncier
G123: =Input!C61 -> 8000 | H123: coûts des immobilisations — bâtiments
F124: + | G124: =Input!C70 -> 10000 | H124: coûts des immobilisations — terrains
F125: = | G125: =SUM(G123:G124) -> 18000 | H125: Total bâtiments et terrains
F126: x | G126: =Input!D53/100 -> 0.005 | H126: Taux d’impôt foncier
F127: = | G127: =SUM(G125*G126) -> 90 | H127: Total impôt foncier
D129: 2.08 Droit d'exploitation
D130: (Le droit d’exploitation est perçu sur la moitié du sous-total des coûts d’exploitation)
G132: =Summary!D21 -> 4623.362664 | H132: sous-total des coûts d’exploitation
F133: ÷ | G133: 2 | H133: moyenne
F134: x | G134: =Input!D55 -> 4 | H134: % taux du droit d’exploitation
F135: = | G135: =ROUND((G132/G133)*(G134),2)/100 -> 92.4673 | H135: Droit d'exploitation
G137: Coûts des immobilisations
C139: Bâtiments
C140: Installation de biodiesel | H140: =Input!C59 -> 3000
C141: Installation d’huile de canola | H141: =Input!C60 -> 5000
C142: Coût total des bâtiments | H142: =SUM(H140:H141) -> 8000
C144: Machinerie et équipement
C145: Installation de biodiesel | H145: =Input!C64 -> 3000
C146: Installation d’huile de canola | H146: =Input!C65 -> 36000
C147: Coût total de la mach. et de l’équ. | H147: =SUM(H145:H146) -> 39000
C149: Total des bât., de la mach. et de l’équ. | H149: =H142+H147 -> 47000
C151: Valeur totale des terrains | H151: =Input!C70 -> 10000
C153: Total des invest. en immobilisations | H153: =H149+H151 -> 57000
B156: B. Coûts fixes
C157: 3. Dépréciation | G157: Coût historique — valeur de récupération
G158: Durée économique
D160: 3.01 Bâtiments
G161: =Input!C61 -> 8000 | H161: coût historique
F162: - | G162: =(Input!E61)*Input!C61 -> 800 | H162: valeur de récupération
F163: ÷ | G163: =Input!F61 -> 20 | H163: années de durée économique
F164: = | G164: =((G161-G162)/G163) -> 360
D166: 3.02 Machinerie et équipement
G167: =Input!C66 -> 39000 | H167: coût historique
F168: - | G168: =(Input!E66)*Input!C66 -> 3900 | H168: valeur de récupération
F169: ÷ | G169: =Input!F66 -> 15 | H169: années de durée économique
F170: = | G170: =((G167-G168)/G169) -> 2340
C172: 4. Investissements | G172: Coût historique + valeur de récupération x taux d’investissement
H173: 2
D174: 4.01 Bâtiments
G175: =G161 -> 8000 | H175: coût historique
F176: + | G176: =G162 -> 800 | H176: valeur de récupération
F177: ÷ | G177: 2 | H177: moyenne
F178: x | G178: =Input!D54 -> 2.5 | H178: % taux d’investissement
F179: = | G179: =(((G175+G176)/G177)*(G178/100)) -> 110
D181: 4.02 Machinerie et équipement
G182: =G167 -> 39000 | H182: coût historique
F183: + | G183: =G168 -> 3900 | H183: valeur de récupération
F184: ÷ | G184: 2 | H184: moyenne
F185: x | G185: =Input!D54 -> 2.5 | H185: % taux d’investissement
F186: = | G186: =(((G182+G183)/G184)*(G185/100)) -> 536.25
D188: 4.03 Terrains
G189: =Input!C70 -> 10000 | H189: terrains
F190: x | G190: =Input!D54 -> 2.5 | H190: % taux d’investissement
F191: = | G191: =SUM(G189*(G190/100)) -> 250
B193: C. Main-d’œuvre
D194: Huile de canola
G195: =Input!D36 -> 0.05 | H195: Employé par quart de travail
F196: x | G196: =Input!D34 -> 155 | H196: Jours par année
F197: x | G197: =Input!D35 -> 24 | H197: Heures d’exploitation par jour
F198: x | G198: =Input!D37 -> 20 | H198: Taux de main-d’œuvre par heure
E199: Total | F199: = | G199: =SUM(G195*G196*G197*G198) -> 3720 | H199: Coût de la main-d’œuvre pour l’huile de canola
G200: =SUM((Input!D34*Input!D35)*Input!D36)/(40*48) -> 0.096875 | H200: Emploi à temps plein
D201: Biodiesel
G202: =Input!D17 -> 0.25 | H202: Employé par quart de travail
F203: x | G203: =Input!D15 -> 65 | H203: Jours par année
F204: x | G204: =Input!D16 -> 8 | H204: Heures d’exploitation par jour
F205: x | G205: =Input!D18 -> 20 | H205: Taux de main-d’œuvre par heure
E206: Total | F206: = | G206: =SUM(G202*G203*G204*G205) -> 2600 | H206: Coût de la main-d’œuvre pour le biodiesel
G207: =SUM((Input!D15*Input!D16)*Input!D17)/(40*48) -> 0.06770833333 | H207: Emploi à temps plein
D209: Total | F209: = | G209: =G206+G199 -> 6320 | H209: Main-d’œuvre
D210: Total | F210: = | G210: =SUM(G207+G200) -> 0.1645833333 | H210: Emplois à temps plein
C212: 5. Valeur
D213: 5.01 Valeur estimée du biodiesel agricole
G214: =Input!D26 -> 1.2 | H214: Diesel (coloré) carburant agricole — #1 DTUFS
F215: x | G215: =SUM(1000*Input!D14) -> 15000 | H215: Capacité de l’installation de biodiesel — litres
E216: Total | F216: = | G216: =G215*G214 -> 18000 | H216: Valeur du biodiesel
D218: 5.02 Valeur estimée de l’efficacité accrue du carburant
G219: =SUM(1*(1-(Input!D28/100)))*(1*(1-(Input!D27/100))) -> 0 | H219: ="Carburant diesel utilisé — portion du mélange B"&Input!D27 -> Carburant diesel utilisé — portion du mélange B100
F220: x | G220: =Input!D26 -> 1.2 | H220: Diesel (coloré) carburant agricole — #1 DTUFS
F221: = | G221: =SUM(G219*G220) -> 0 | H221: ="Valeur du carburant diesel — portion du mélange B"&Input!D27&"" -> Valeur du carburant diesel — portion du mélange B100
G223: =Input!D26 -> 1.2 | H223: Diesel (coloré) carburant agricole — #1 DTUFS
F224: - | G224: =G221 -> 0 | H224: =H221 -> Valeur du carburant diesel — portion du mélange B100
F225: = | G225: =SUM(G223-G224) -> 1.2 | H225: ="Valeur du carburant biodiesel — portion du mélange B"&Input!D27&"" -> Valeur du carburant biodiesel — portion du mélange B100
F226: ÷ | G226: =SUM(1*(1-(Input!D28/100)))*(1*((Input!D27/100))) -> 0.985 | H226: ="Carburant biodiesel utilisé — portion du mélange B"&Input!D27&"" -> Carburant biodiesel utilisé — portion du mélange B100
G227: =SUM(G225/G226) -> 1.218274112 | H227: Total de la valeur relative du biodiesel
F228: - | G228: =Input!D26 -> 1.2 | H228: Diesel (coloré) carburant agricole — #1 DTUFS
F229: = | G229: =SUM(G227-G228) -> 0.01827411168 | H229: Solde — valeur relative du biodiesel
F230: x | G230: =SUM(1000*Input!D14) -> 15000 | H230: Capacité de l’installation de biodiesel — litres
E231: Total | F231: = | G231: =G230*G229 -> 274.1116751 | H231: Valeur accrue de l’efficacité du carburant
D233: 5.03 Ventes de glycérol
G234: =SUM((Input!D14*1000)*0.0935884)/1000 -> 1.403826 | H234: Tonnes de glycérol produites
F235: x | G235: =Input!D25 -> 180 | H235: glycérol par tonne
E236: Total | F236: = | G236: =G235*G234 -> 252.68868 | H236: Glycérol
B238: Pour de plus amples renseignements, communiquez avec :
B241: Préparé par : | H241: Adapté pour l’Ontario par :
B243: Roy Arnott, agronome | H243: Kevin McKague, agronome
B244: Spécialiste en gestion d’exploitation agricole | H244: Ministère de l’Agriculture, de l’Alimentation et des Affaires rurales de l’Ontario
B245: Agricultrure, Alimentation et Initiatives rurales Manitoba | H245: Woodstock, ON 519 835-6078
B246: Killarney GO Centre 204 523-6424 | H246: courriel : kevin.mckague@ontario.ca
... 1 more rows
